Cogmind - Beta 11.1 @@@ ROGUE MODE // 2022.04.26 @ 14:13:20 // Winter2019/RPGLIKE Player: Kiks Result: Self-destructed Performance ------------- Evolutions (3) 1500 Regions Visited (5) 1000 Robots Destroyed (102) 510 Value Destroyed (3212) 3212 Prototype IDs (1) 20 Alien Tech Used (0) 0 Bonus (635) 635 TOTAL SCORE: 6877 Bonus ------- High Alert Combat Kills 635 Cogmind --------- Core Integrity 137/1000 Matter 300/300 Energy 220/220 System Corruption 16% Temperature Cool (0) Movement Flying (101) Ox1 Location -7/Factory Parts ------- > --- POWER (2) -------- Light Nuclear Core Light Nuclear Core > --- PROPULSION (6) --- Improved Flight Unit Improved Flight Unit Improved Flight Unit Improved Flight Unit > --- UTILITY (5) ------ Melee Analysis Suite Actuator Array > --- WEAPON (3) ------- Great Maul Katana Katana > --- INVENTORY (3) ---- Light Nuclear Core System Restoration Module Peak State ------------ > --- POWER ------------ Light Nuclear Core Light Nuclear Core > --- PROPULSION ------- Improved Flight Unit Improved Flight Unit Improved Flight Unit Improved Flight Unit Improved Flight Unit > --- UTILITY ---------- Improved Heat Sink Melee Analysis Suite Melee Analysis Suite Actuator Array Reaction Control System > --- WEAPON ----------- Great Maul Katana Katana > --- INVENTORY -------- Light Nuclear Core System Restoration Module [Rating: 45] Favorites ----------- Power Light Nuclear Core Engine Ion Engine Power Core Light Nuclear Core Propulsion Improved Flight Unit Leg Aluminum Leg Flight Unit Improved Flight Unit Utility Terrain Scanner Device Terrain Scanner Processor Melee Analysis Suite Weapon Autogun Ballistic Gun Autogun Impact Weapon Heavy Flail Slashing Weapon Katana Build | -11 -10 -10 -9 -8 -7 ------- Run | Scr Mat Min Mat Mat Fac Slots Evolved 12 | 3 . 1 1 6 1 Power 1 | . . . . 1 . Propulsion 5 | 1 . 1 1 2 . Utility 4 | 1 . . . 2 1 Weapon 2 | 1 . . . 1 . Parts Attached 43 | 6 5 3 8 17 4 Power 4 | 1 1 . . 2 . Engine 1 | 1 . . . . . Core 3 | . 1 . . 2 . Reactor . | . . . . . . Propulsion 17 | 2 . 3 8 4 . Treads . | . . . . . . Leg 2 | 2 . . . . . Wheel . | . . . . . . Hover . | . . . . . . Flight 15 | . . 3 8 4 . Utility 11 | . 2 . . 6 3 Device 5 | . 1 . . 2 2 Storage . | . . . . . . Processor 6 | . 1 . . 4 1 Hackware . | . . . . . . Protection . | . . . . . . Artifact . | . . . . . . Weapon 11 | 3 2 . . 5 1 Energy Gun . | . . . . . . Energy Cannon . | . . . . . . Ballistic Gun 6 | 3 2 . . 1 . Ballistic Cannon . | . . . . . . Launcher . | . . . . . . Special Weapon . | . . . . . . Impact Weapon 3 | . . . . 2 1 Slashing Weapon 2 | . . . . 2 . Piercing Weapon . | . . . . . . Special Melee Weapon . | . . . . . . Unidentified Prototypes 1 | . . . 1 . . Parts Lost 4 | . . . . . 4 Power . | . . . . . . Propulsion 1 | . . . . . 1 Utility 3 | . . . . . 3 Weapon . | . . . . . . Highest Loss Streak 4 | . . . . . 4 To Critical Strikes 1 | . . . . . 1 Average Slot Usage (%) 95 | . 93 100 100 94 92 Engine 3 | . 10 . . . . Core 9 | . 3 12 11 12 12 Leg 8 | . 28 2 . . . Flight 27 | . . 33 44 37 31 Device 11 | . 13 12 11 6 15 Processor 12 | . 9 12 11 15 12 Ballistic Gun 17 | . 28 25 22 7 . Impact Weapon 2 | . . . . 8 6 Slashing Weapon 2 | . . . . 4 12 Naked Turns . | . . . . . . Heaviest Build 25 | 8 12 12 12 19 25 Greatest Support 25 | 20 20 20 18 25 25 Greatest Overweight (x) . | . . . . . . Average Overweight (x) . | . . . . . . Largest Inventory Capacity 3 | 3 3 3 3 3 3 Average Capacity 2 | 2 3 3 3 3 3 Most Carried 3 | . 3 3 3 3 3 Average Carried 1 | . . 2 2 1 1 Final Capacity 3 | 3 3 3 3 3 3 Final Carried 3 | . 3 3 3 1 2 Class Distribution -------------------- 31% | Scavenger-Sprinter 31% | Mutant 29% | Sprinter 7% | Scavenger-Mutant Dominant Class ---------------- Mutant | -10/Materials Scavenger-Mutant | -10/Mines Sprinter | -9/Materials Scavenger-Sprinter | -8/Materials Scavenger-Sprinter | -7/Factory Resources | -11 -10 -10 -9 -8 -7 ----------- Run | Scr Mat Min Mat Mat Fac Matter Collected 2024 | 264 239 224 817 434 46 Remotely . | . . . . . . Salvage Created 4064 | . 476 112 1457 1410 609 Parts 200 | . 39 10 91 51 9 Haulers Intercepted 8 | . 1 . 3 3 1 Recyclers Shooed 1 | . 1 . . . . Parts Field Recycled . | . . . . . . Retrieved Matter . | . . . . . . Parts Self-Destructed . | . . . . . . Prevented . | . . . . . . Kills | -11 -10 -10 -9 -8 -7 ------- Run | Scr Mat Min Mat Mat Fac Combat Hostiles Destroyed 78 | . 8 7 28 26 9 Melee 16 | . . . . 12 4 Guns 53 | . 8 7 28 10 . Classes Destroyed 12 | . 5 . 5 1 1 Worker 1 | . . . . . 1 Builder 1 | . . . 1 . . Tunneler 1 | . . . 1 . . Hauler 8 | . 1 . 3 3 1 Recycler 3 | . 1 . 1 1 . Operator 2 | . . . . 1 1 Watcher 8 | . 3 . 1 3 1 Swarmer 12 | . 3 3 3 3 . Grunt 45 | . 5 4 16 14 6 Brawler 3 | . . . 1 2 . Duelist 4 | . . . 1 3 . Sentry 14 | . . . 7 4 3 Best Kill Streak 10 | . 4 4 10 7 4 Combat Bots Only 9 | . 4 4 9 4 3 Max Kills in Single Turn 2 | . 1 2 2 2 1 Gunslinging 1 | . . 1 1 1 . Exploded . | . . . . . . Melee 1 | . . . . 1 1 Uniques/NPCs Destroyed . | . . . . . . Combat | -11 -10 -10 -9 -8 -7 -------- Run | Scr Mat Min Mat Mat Fac Damage Taken 3483 | . 359 150 1037 1209 728 Core 2812 | . 291 121 847 998 555 Absorbed by Shields . | . . . . . . Redirected to Core 2151 | . 221 88 649 746 447 Core Remaining (%) 78 | 100 . 100 62 50 . Volleys Fired 178 | 1 36 18 90 33 . Largest 2 | 2 2 2 2 2 . Hottest 48 | 40 46 46 46 48 . Shots Fired 356 | 2 72 36 180 66 . Gun 356 | 2 72 36 180 66 . Cannon . | . . . . . . Launcher . | . . . . . . Special . | . . . . . . Kinetic 356 | 2 72 36 180 66 . Thermal . | . . . . . . Explosive . | . . . . . . Electromagnetic . | . . . . . . Robot Hit Streak 23 | 1 9 5 13 23 . Robot Miss Streak 7 | 1 2 2 7 2 . Penetration Max . | . . . . . . Secondary Targets 10 | . 2 4 3 1 . Max Gunslinging Chain 1 | . 1 1 1 1 . Shots Hit Robots 354 | 1 50 21 117 121 44 Core Hits 123 | . 19 9 51 37 7 Critical Kills 3 | . . . 1 1 1 Critical Parts Destroyed 17 | . 2 . 1 9 5 Critical Strikes 24 | . 2 . 2 13 7 Destroy 4 | . 2 . 2 . . Smash 17 | . . . . 11 6 Sever 3 | . . . . 2 1 Melee Attacks 132 | . . . . 85 47 Impact 105 | . . . . 72 33 Slashing 27 | . . . . 13 14 Piercing . | . . . . . . Sneak Attacks 10 | . . . . 5 5 Combat Hostiles 3 | . . . . 1 2 Follow-up Attacks 24 | . . . . 13 11 Damage Inflicted 9134 | 6 698 295 1901 3953 2281 Guns 3668 | 6 698 295 1901 768 . Cannons . | . . . . . . Explosions . | . . . . . . Melee 5466 | . . . . 3185 2281 Ramming . | . . . . . . Kinetic 3668 | 6 698 295 1901 768 . Thermal . | . . . . . . Explosive . | . . . . . . Electromagnetic . | . . . . . . Impact 4816 | . . . . 2933 1883 Slashing 650 | . . . . 252 398 Piercing . | . . . . . . Highest Corruption 16 | . . . . . 16 Average Corruption 16 | . . . . . 16 Corruption Purged . | . . . . . . Corruption Blocked . | . . . . . . Effects 1 | . . . . . 1 Matter Fused 1 | . . . . . 1 Overload Shots . | . . . . . . Overflow Damage 1169 | . . . . 620 549 Projectiles . | . . . . . . Explosions . | . . . . . . Melee 1169 | . . . . 620 549 Knockbacks 14 | . . . . 9 5 Impact 14 | . . . . 9 5 Kinetic . | . . . . . . Secondary . | . . . . . . Self-Inflicted Damage . | . . . . . . Shots . | . . . . . . Rammed . | . . . . . . Targets Rammed . | . . . . . . Kicked . | . . . . . . Crushed . | . . . . . . Highest Temperature 285 | . 100 143 285 209 2 Average Temperature 83 | . 38 51 90 95 2 Received Heat Transfer 1263 | . 186 57 408 423 189 Effects 1 | . . . 1 . . Energy Bleed 1 | . . . 1 . . Siege Activations . | . . . . . . Robots Corrupted . | . . . . . . Combat Hostiles . | . . . . . . Parts Fried 18 | . . . . 8 10 Impact Corruptions 31 | . . . . 17 14 Robots Melted . | . . . . . . Combat Hostiles . | . . . . . . Parts Melted . | . . . . . . Heat Transferred . | . . . . . . Parts Sabotaged . | . . . . . . Parts Stolen . | . . . . . . Parts Stripped . | . . . . . . Power Chain Reactions . | . . . . . . Missiles Intercepted . | . . . . . . Alert | -11 -10 -10 -9 -8 -7 ------- Run | Scr Mat Min Mat Mat Fac Peak Influence 871 | . 181 270 871 787 657 Initial 354 | . . 70 105 343 354 Average 361 | . 66 206 523 548 519 Maximum Alert Level 3 | . . 1 3 3 2 Low Security (%) 37 | 100 100 44 14 1 . Level 1 14 | . . 55 19 13 15 Level 2 34 | . . . 36 62 84 Level 3 12 | . . . 29 22 . Level 4 . | . . . . . . Level 5 . | . . . . . . High Security . | . . . . . . Max Security . | . . . . . . Squads Dispatched 10 | . 1 . 3 4 2 Investigation 1 | . . . 1 . . Extermination . | . . . . . . Reinforcement 7 | . 1 . 2 2 2 Assault . | . . . . . . Garrison 2 | . . . . 2 . Intercept . | . . . . . . Searches Triggered . | . . . . . . Construction Impeded . | . . . . . . Haulers Reinforced 1 | . . . . . 1 Active Scanning Responses . | . . . . . . Cargo Convoy Interrupts . | . . . . . . Stealth | -11 -10 -10 -9 -8 -7 --------- Run | Scr Mat Min Mat Mat Fac Distress Signals 3 | . . . 2 1 . Communications Jammed . | . . . . . . Distress Signals . | . . . . . . Times Spotted 111 | . 14 9 35 41 12 Peak Tracking Total 5 | . 4 5 5 4 3 Tactical Retreats 5 | . . 1 . 4 . Traps | -11 -10 -10 -9 -8 -7 ------- Run | Scr Mat Min Mat Mat Fac Traps Triggered 1 | . . . 1 . . Indirectly . | . . . . . . Trap Hack Attempts . | . . . . . . Triggered . | . . . . . . Disarmed . | . . . . . . Reprogrammed . | . . . . . . Reused . | . . . . . . Traps Extracted . | . . . . . . Installed . | . . . . . . Triggered . | . . . . . . Machines | -11 -10 -10 -9 -8 -7 ---------- Run | Scr Mat Min Mat Mat Fac Machines Disabled 3 | . 1 1 1 . . Max in Single Turn 1 | . 1 1 1 . . Machines Sabotaged . | . . . . . . Garrisons Compromised . | . . . . . . Overloaded Fab Kills . | . . . . . . Hacking | -11 -10 -10 -9 -8 -7 --------- Run | Scr Mat Min Mat Mat Fac Machines Accessed 14 | . 4 . 3 5 2 Terminals 14 | . 4 . 3 5 2 Fabricators . | . . . . . . Repair Stations . | . . . . . . Recycling Units . | . . . . . . Scanalyzers . | . . . . . . Garrison Access . | . . . . . . Total Hacks 36 | . 13 . 8 11 4 Successful 17 | . 5 . 4 6 2 Failed 19 | . 8 . 4 5 2 Catastrophic 5 | . 3 . 2 . . Database Lockouts . | . . . . . . Manual 34 | . 13 . 8 9 4 Terminals 36 | . 13 . 8 11 4 Fabricators . | . . . . . . Repair Stations . | . . . . . . Recycling Units . | . . . . . . Scanalyzers . | . . . . . . Garrison Access . | . . . . . . Terminal Hacks 4 | . 1 . 1 2 . Level Access Points 1 | . . . 1 . . Unreport Threat 2 | . . . . 2 . Patrol Status 1 | . 1 . . . . Fabricator Hacks . | . . . . . . Repair Station Hacks . | . . . . . . Recycling Unit Hacks . | . . . . . . Scanalyzer . | . . . . . . Garrison Access Hacks . | . . . . . . Unauthorized Hacks 13 | . 4 . 3 4 2 Terminals 13 | . 4 . 3 4 2 Botnet 13 | . 4 . 3 4 2 Fabricators . | . . . . . . Repair Stations . | . . . . . . Recycling Units . | . . . . . . Scanalyzers . | . . . . . . Garrison Access . | . . . . . . Data Cores Recovered 2 | . . . . 1 1 Used 1 | . . . . . 1 Hacking Detections 14 | . 4 . 3 5 2 Full Trace Events 1 | . 1 . . . . Feedback Events . | . . . . . . Feedback Blocked . | . . . . . . Robot Schematics Acquired . | . . . . . . Robots Built . | . . . . . . Authchips . | . . . . . . Time . | . . . . . . Total Robot Build Rating . | . . . . . . Part Schematics Acquired . | . . . . . . Parts Built . | . . . . . . Authchips . | . . . . . . Time . | . . . . . . Total Part Build Rating . | . . . . . . Parts Repaired . | . . . . . . Time . | . . . . . . Parts Recycled . | . . . . . . Recycled Matter . | . . . . . . Retrieved Matter . | . . . . . . Retrieved Components . | . . . . . . Parts Scanalyzed . | . . . . . . Part Schematics Acquired . | . . . . . . Parts Damaged . | . . . . . . Bothacking | -11 -10 -10 -9 -8 -7 ------------ Run | Scr Mat Min Mat Mat Fac Used RIF Installer . | . . . . . . Robots Hacked . | . . . . . . Non-combat . | . . . . . . Combat . | . . . . . . Robot Hacks Applied . | . . . . . . Relay Couplers Released . | . . . . . . Fabnet Peak Effective % . | . . . . . . Robots Rewired . | . . . . . . Allies Hacked . | . . . . . . Hacks Repelled . | . . . . . . Allies | -11 -10 -10 -9 -8 -7 -------- Run | Scr Mat Min Mat Mat Fac Total Allies . | . . . . . . Largest Group . | . . . . . . Highest-Rated Group . | . . . . . . Highest-Rated Ally . | . . . . . . Total Orders . | . . . . . . Ally Attacks . | . . . . . . Total Damage . | . . . . . . Kills . | . . . . . . Allies Corrupted . | . . . . . . Allies Melted . | . . . . . . Intel | -11 -10 -10 -9 -8 -7 ------- Run | Scr Mat Min Mat Mat Fac Robot Analysis Total . | . . . . . . Derelict Logs Recovered 2 | . . 2 . . . Drone Launches . | . . . . . . Drone Recoveries . | . . . . . . Exploration | -11 -10 -10 -9 -8 -7 ------------- Run | Scr Mat Min Mat Mat Fac Turns Passed 2178 | 54 610 188 492 581 253 Spaces Moved 2424 | 41 408 314 536 804 321 Core 9 | 9 . . . . . Treads . | . . . . . . Legs 443 | 32 408 3 . . . Wheels . | . . . . . . Hover . | . . . . . . Flight 1972 | . . 311 536 804 321 Fastest Speed 28 | 50 120 34 28 28 28 Average Speed 46 | 104 120 34 30 28 28 Slowest Speed 120 | 120 120 120 34 31 28 Overloaded Moves . | . . . . . . Propulsion Burnouts . | . . . . . . Robots Hopped 7 | . . 1 3 3 . Cave-ins Triggered . | . . . . . . Exploration Rate (%) 51 | 4 77 83 68 60 14 Regions Visited 5 Branch Regions 1 Pre-discovered Areas . | . . . . . . Known Exits Taken 1 | . . . 1 . . Unknown Exits Taken 4 | 1 1 1 . 1 . Scrap Searched 1 | . . 1 . . . Spaces Dug 1 | . . . . 1 . Terrain Destroyed 1 | . . . . 1 . Melee 1 | . . . . 1 . Projectile . | . . . . . . AOE . | . . . . . . Terrain Rammed . | . . . . . . Walls Destroyed . | . . . . . . Machines Disabled . | . . . . . . Actions | -11 -10 -10 -9 -8 -7 --------- Run | Scr Mat Min Mat Mat Fac Total 3029 | 48 468 364 723 1005 421 Wait 151 | . 4 6 44 48 49 Move 2405 | 40 407 311 529 797 321 Hop 7 | . . 1 3 3 . Pick Up 18 | . 4 5 4 3 2 Fast Attach 20 | 5 4 . 1 7 3 Attach 9 | . . 3 1 4 1 Detach . | . . . . . . Swap 14 | 1 1 . 6 6 . Drop 32 | 1 3 4 9 12 3 Fire 178 | 1 36 18 90 33 . Melee 93 | . . . . 60 33 Ram . | . . . . . . Kick . | . . . . . . Crush . | . . . . . . Escape Stasis . | . . . . . . Rewire . | . . . . . . Trap . | . . . . . . Miscellaneous 102 | . 9 16 36 32 9 Route ------- -11/Scrapyard -10/Materials (discovered 4 exits: *Mat x2 / [*Min x2]) -10/Mines -9/Materials (discovered 3 exits: *Mat x3) -8/Materials (discovered 2 exits: *Fac x2) -7/Factory (discovered 3 exits: *Fac / Sto / [*Low]) History --------- Turn | Location | Event 13 | -11/Scrapyard | Upgraded with Propulsion slot (x1) 13 | -11/Scrapyard | Upgraded with Utility slot (x1) 13 | -11/Scrapyard | Upgraded with Weapon slot (x1) 28 | -11/Scrapyard | Discovered new exit (range 15) 55 | -11/Scrapyard | Entered Materials 151 | -10/Materials | Discovered new exit (range 16) 307 | -10/Materials | Build established: Mutant 332 | -10/Materials | Discovered new exit (range 8) 392 | -10/Materials | Discovered new exit (range 13) 544 | -10/Materials | Discovered new exit (range 16) 665 | -10/Materials | Entered Mines 667 | -10/Mines | Reached level 2 684 | -10/Mines | Upgraded with Propulsion slot (x1) 709 | -10/Mines | Discovered new exit (range 6) 728 | -10/Mines | Joined a pair of Derelicts in attacking an 0b10 outpost 853 | -10/Mines | Entered Materials 855 | -9/Materials | Reached level 3 856 | -9/Materials | Upgraded with Propulsion slot (x1) 919 | -9/Materials | Identified exit to Materials 948 | -9/Materials | Reached level 4 1090 | -9/Materials | Reached level 5 1184 | -9/Materials | Build established: Sprinter 1196 | -9/Materials | Destroyed 9 combat bots 1238 | -9/Materials | Reached level 6 1345 | -9/Materials | Entered another Materials area 1347 | -8/Materials | Reached level 7 1384 | -8/Materials | Core integrity fell below 50% 1513 | -8/Materials | Reached level 8 1535 | -8/Materials | Discovered new exit (range 5) 1536 | -8/Materials | Upgraded with Power slot (x1) 1536 | -8/Materials | Upgraded with Propulsion slot (x2) 1536 | -8/Materials | Upgraded with Utility slot (x1) 1597 | -8/Materials | Upgraded with Weapon slot (x1) 1731 | -8/Materials | Discovered new exit (range 15) 1761 | -8/Materials | Reached level 9 1776 | -8/Materials | Core integrity fell below 20% 1777 | -8/Materials | Garrison activated, responded to threat 1785 | -8/Materials | Upgraded with Utility slot (x1) 1825 | -8/Materials | Build established: Scavenger-Sprinter 1926 | -8/Materials | Entered Factory 1927 | -7/Factory | Identified exit to Storage 1928 | -7/Factory | Reached level 10 1953 | -7/Factory | Discovered new exit (range 5) 1954 | -7/Factory | Core integrity fell below 50% 1995 | -7/Factory | Discovered new exit (range 13) 2012 | -7/Factory | Reached level 11 2037 | -7/Factory | Identified exit to Factory 2045 | -7/Factory | Upgraded with Utility slot (x1) 2168 | -7/Factory | System corruption reached 10% 2174 | -7/Factory | Core integrity fell below 20% 2179 | -7/Factory | Self-destructed Last Messages --------------- 02167_ Critical hit (Smash). 02167_ Reaction Control System destroyed. 02167_ Melee Analysis Suite destroyed. 02167_ Imp. Flight Unit destroyed. 02167_ Imp. Heat Sink destroyed. 02167_ System corrupted by crushing effect (+3). 02167_ System corrupted by crushing effect (+4). 02167_ System corrupted by crushing effect (+5). 02167_ U-05 Engineer lays Concrete. 02169_ System corrupted: Matter fused (-6). 02169_ Acquired 6 matter. 02169_ R-06 Scavenger collects Prototype Ballistic Gun. 02169_ U-05 Engineer lays Concrete. 02172_ R-06 Scavenger collects Prototype Ballistic Gun. 02172_ Knocked back. 02174_ K-01 Serf collects debris. 02176_ Katana follow-up attack on B-48 Gladiator. 02176_ Destroyed Imp. Light Armor Plating. 02176_ Knocked back. 02177_ K-01 Serf collects debris. Map ----- +----------------------------------------------------+ | ???????? ""R" ## ######## #?????????????????? | | ???????# "" " ] # +?????????????????? | | ???????# + #?????????????????? | | ???????# """ """ # #?????????????????? | | ???????# """ """ ### ##?????????????????? | | ???????# """ """ #?? """ #??????????????????? | | ???????# #?? """ #??????????????????? | | ???????####+###+##??### """ ????????????????????? | | ??????????????# #?????? """?????????????????????? | | ??????????????# #?????? ?????????????????????? | | ??????????????# #?????? """ ???????????????????? | | ????????????###+######? """ ???????????????????? | | ????????????# #? """ #??????????????????? | | ????????????# ## "?" #??????????????????? | | ????????????# ## ? #??????????????????? | | ????????????# "" ## """ #??????????????????? | | ????????????# """ ## """ #??????????????????? | | ????????????# "T ## """ #??????????????????? | | ????????????# """ + """ ##########?????????? | | ????????????# "" ## u# ##????????? | | ??????????#?+ ## """ # "#????????? | | ??????????# #####+##### """ # "##???????? | | ????####### """ # " #???????? | | ??? r """ %# "##???????? | | ?? r + " #???????? | | ??? @ %# ! " #???????? | | ???####+####### # "##???????? | | ??????????????# b # "#????????? | | ??????????????# """ g#"""""""""#????????? | | ??????????????# T" r### ####????????? | | ??????????????# r"""k #??#####???????????? | | ??????????????# ^^ ?????????????????? | | ??????????????# ????????????????? | | ??????????????# ???????????????? | | ??????????????# ?????????????? | | ??????????????# ????????????? | | ??????????????## ############ ???????????? | | ???????????????# ???????????# ?????????? | | ???????????????# ???????????? """" #????????? | | ???????????????#+???????????? """" ?????????? | | ????????????????????????????? ""?????????????? | | ????????????????????????????? "??????????????? | | ????????????????????????????? "??????????????? | | ????????????????????????????? ???????????????? | | ????????????????????????????? ?????????????????? | | ?????????????????????????????????????????????????? | | ?????????????????????????????????????????????????? | | ?????????????????????????????????????????????????? | | ?????????????????????????????????????????????????? | | ?????????????????????????????????????????????????? | +----------------------------------------------------+ Best States ------------- Heat Dissipation 45 Energy Generation 23 Energy Capacity 250 Matter Stores 300 Matter Capacity 300 Sight Range 16 Terrain Scan Range 14 Terrain Scan Density 10 Evasion (%) 72 Targeting Accuracy 16 Melee Accuracy 10 Item Schematics ----------------- None Robot Schematics ------------------ None Fabricated ------------ Nothing Alien Tech Used ----------------- None Achievements -------------- None Challenges ------------ None RPGLIKE | -11 -10 -10 -9 -8 -7 --------- Run | Scr Mat Min Mat Mat Fac Levels Raised 10 | . . 1 4 3 2 XP Earned 18754 | 3000 1250 1350 5422 4950 2782 XP Spent 15830 | 3000 . 800 1100 9530 1400 Upgrades 30 | 6 . 1 1 21 1 Power Slot 1 | . . . . 1 . Propulsion Slot 5 | 1 . 1 1 2 . Utility Slot 4 | 1 . . . 2 1 Weapon Slot 2 | 1 . . . 1 . Core Integrity 8 | . . . . 8 . Heat Dissipation 1 | . . . . 1 . Inventory Capacity 3 | 3 . . . . . Melee Accuracy 6 | . . . . 6 . Protomatter Created 778 | . 57 124 275 243 79 Integrity Restored 2151 | . 171 334 731 729 186 Core 1949 | . 171 241 622 729 186 Parts 202 | . . 93 109 . . Protomatter Decayed 51 | . . 10 41 . . Game ------ Seed SwordNuclearSource Manual? 0 Play Time 00:31:42 Cumulative 103.9 hours Start 2022.04.26 @ 13:45:37 End 2022.04.26 @ 14:13:20 Sessions 1 Manual Loads 0 Difficulty Rogue Special Mode Winter2019/RPGLIKE Game No. 66 Rogue 27 Adventurer 5 Explorer 34 Win Type - Total 19 Types 10/0/4/4/1/0/0/0/0 Lore% 69 Gallery% 68 Achievement% 75 Wizard Run 0 Options --------- ASCII 0 Keyboard 0 Movement Mouse Keybinds 0 Fullscreen 1 Font 12/Terminus Map View 83x54 Tactical HUD 1 Map Filters NONE Filters NONE Steam 1 RUN: e74797aa-0f38-46cd-b824-68bd24fdea43